bitfinex-derivatives/quotes_BTCF0:USTF0_20250117
["timestamp","ask_amount","ask_price","bid_price","bid_amount"]
[1737120975290,0.7677511,102760.0,102750.0,0.00304315]
[1737120975479,0.048666,102750.0,102740.0,0.17418678]
[1737120975682,0.50076005,102750.0,102740.0,0.17723027]
[1737120976292,0.50076005,102750.0,102740.0,0.17418678]
[1737120976793,0.50076005,102750.0,102740.0,0.1772304]
[1737120976987,0.6753734,102750.0,102730.0,0.22285978]
[1737120977186,0.468171,102740.0,102730.0,0.24989949]
[1737120977497,0.55946505,102740.0,102730.0,0.24989949]
[1737120977984,0.55946505,102740.0,102730.0,0.02703971]
[1737120978190,0.68066505,102740.0,102730.0,0.02703971]
[1737120978689,0.68066505,102740.0,102730.0,0.00304371]
[1737120979385,0.048678,102730.0,102720.0,0.17418678]
[1737120979702,0.50077205,102730.0,102720.0,0.18940644]
[1737120979993,0.50077205,102730.0,102720.0,0.17418678]
[1737120980295,0.048681,102720.0,102710.0,0.23604695]
[1737120980495,0.50077505,102720.0,102710.0,0.26301725]
[1737120980690,0.50077505,102720.0,102710.0,0.2630175]
[1737120980993,0.50077505,102720.0,102710.0,0.19044042]
[1737120981192,0.7086691,102720.0,102710.0,0.17418678]
[1737120981586,0.048683,102710.0,102700.0,0.17418678]
[1737120981781,0.55917705,102710.0,102700.0,0.17418678]
[1737120983097,0.467883,102710.0,102690.0,0.51254321]
[1737120983297,0.467883,102710.0,102690.0,0.51558778]
[1737120983988,0.55917705,102710.0,102690.0,0.51558778]
[1737120984188,0.55917705,102710.0,102690.0,0.51254321]
[1737120984498,0.60786805,102710.0,102690.0,0.06044916]
[1737120984694,0.60786805,102710.0,102690.0,0.07567259]
[1737120984898,0.13998405,102700.0,102690.0,0.02697859]
[1737120985885,0.50078405,102700.0,102690.0,0.02697859]
[1737120986290,0.50078405,102700.0,102690.0,0.01175516]
[1737120986489,0.50078405,102700.0,102680.0,0.10825767]
[1737120986692,0.09129405,102690.0,102680.0,0.10825767]
[1737120986887,0.13998605,102690.0,102680.0,0.0166856]
[1737120987197,0.24958605,102690.0,102680.0,0.0166856]
[1737120987600,0.24958605,102690.0,102680.0,0.01522493]
[1737120987601,0.7016801,102690.0,102680.0,0.01522493]
[1737120988191,0.0487,102680.0,102660.0,0.66780005]
[1737120988390,0.19369405,102680.0,102660.0,0.67084539]
[1737120988589,0.19369405,102680.0,102660.0,0.68607117]
[1737120988800,0.19369405,102680.0,102660.0,0.73173182]
[1737120989001,0.19369405,102680.0,102660.0,0.68302582]
[1737120990294,0.09129405,102670.0,102660.0,0.02683648]
[1737120990499,0.50080005,102670.0,102660.0,0.02683648]
[1737120990890,0.50080005,102670.0,102660.0,0.05120227]
[1737120992292,0.409506,102670.0,102660.0,0.05120227]
[1737120992497,0.50579405,102680.0,102660.0,0.19120532]
[1737120992696,0.50579405,102680.0,102660.0,0.23990832]
[1737120992697,0.463198,102680.0,102660.0,0.23990832]
[1737120992898,0.463198,102680.0,102660.0,0.29520832]
[1737120993100,0.55449205,102680.0,102660.0,0.24649932]
[1737120993403,0.55449205,102680.0,102660.0,0.29520432]
[1737120993704,0.55449205,102680.0,102660.0,0.24649932]
[1737120994204,0.19369205,102680.0,102660.0,0.60729932]
[1737120994502,0.61039005,102690.0,102670.0,0.13999805]
[1737120994705,0.61039005,102690.0,102670.0,0.19659805]
[1737120994890,0.048699,102680.0,102670.0,0.105304]
[1737120995601,0.048699,102680.0,102660.0,0.15520827]
[1737120995602,0.13999305,102680.0,102660.0,0.15520827]
[1737120995804,0.13999305,102680.0,102670.0,0.048706]
[1737120997803,0.048699,102680.0,102670.0,0.048706]
[1737120998899,0.048699,102680.0,102670.0,0.06393277]
[1737121000294,0.55668505,102700.0,102690.0,0.048694]
[1737121000504,0.465391,102700.0,102690.0,0.048694]
[1737121000705,0.55668505,102700.0,102680.0,0.461497]
[1737121001004,0.55668505,102700.0,102680.0,0.100697]
[1737121001005,0.13998805,102690.0,102680.0,0.100697]
[1737121001200,0.5920821,102690.0,102680.0,0.01522531]
[1737121001406,0.6472821,102690.0,102680.0,0.01522531]
[1737121001597,0.61288805,102690.0,102680.0,0.01522531]
[1737121002093,0.048702,102680.0,102670.0,0.105601]
[1737121002295,0.50079605,102680.0,102670.0,0.105601]
[1737121002715,0.13999605,102680.0,102670.0,0.105601]
[1737121003009,0.50079605,102680.0,102670.0,0.07212726]
[1737121003307,0.50079605,102680.0,102670.0,0.01522726]
[1737121003513,0.50709405,102680.0,102660.0,0.01160971]
[1737121003697,0.50709405,102680.0,102650.0,0.76900235]
[1737121003698,0.61290005,102670.0,102650.0,0.40820235]
[1737121003901,0.14000405,102660.0,102650.0,0.41124826]
[1737121004201,0.50080405,102660.0,102650.0,0.45084433]
[1737121004401,0.04871,102660.0,102650.0,0.87254268]
[1737121004601,0.04871,102660.0,102650.0,0.92904268]
[1737121004806,0.04871,102660.0,102650.0,0.52230137]
[1737121005006,0.464706,102670.0,102660.0,0.04871]
[1737121005200,0.464706,102670.0,102660.0,0.05175585]
[1737121005402,0.464706,102670.0,102660.0,0.09135192]
[1737121005907,0.464706,102670.0,102660.0,0.09135183]
[1737121006096,0.3608,102670.0,102660.0,0.18264588]
[1737121006301,0.157701,102680.0,102660.0,0.55562488]
[1737121006706,0.055,102680.0,102670.0,0.13999905]
[1737121006906,0.409499,102690.0,102680.0,0.048701]
[1737121008406,0.409499,102690.0,102680.0,0.05174631]
[1737121008605,0.50079305,102690.0,102680.0,0.05174631]
[1737121009106,0.50079305,102690.0,102680.0,0.048701]
[1737121009415,0.50079305,102690.0,102680.0,0.0517463]
[1737121010800,0.5920871,102690.0,102680.0,0.0030453]
[1737121011314,0.048701,102680.0,102670.0,0.17418678]
[1737121011512,0.55629505,102680.0,102670.0,0.17723243]
[1737121011912,0.55629505,102680.0,102670.0,0.17723254]
[1737121012307,0.55629505,102680.0,102670.0,0.17723251]
[1737121013007,0.55629505,102680.0,102670.0,0.00304573]
[1737121015607,0.7309084,102680.0,102670.0,0.00304573]
[1737121015815,0.7309084,102680.0,102670.0,0.00304587]
[1737121016416,0.048705,102670.0,102660.0,0.22289578]
[1737121016619,0.60259905,102670.0,102660.0,0.22594171]
[1737121017309,0.60259905,102670.0,102660.0,0.17723271]
[1737121018221,0.60259905,102670.0,102660.0,0.17418678]
[1737121019319,0.60259905,102670.0,102660.0,0.17723281]
[1737121020911,0.60259905,102670.0,102660.0,0.00304603]
[1737121021315,0.6938931,102670.0,102660.0,0.00304606]
[1737121021620,0.60259905,102670.0,102660.0,0.00304606]
[1737121021823,0.04871,102660.0,102650.0,0.4182094]
[1737121022023,0.6433981,102660.0,102650.0,0.40978764]
[1737121022712,0.6433981,102660.0,102650.0,0.40674131]
[1737121023024,0.6433981,102660.0,102650.0,0.17418678]
[1737121024319,0.6433981,102660.0,102640.0,0.01117679]
[1737121024516,0.048719,102640.0,102630.0,0.45546231]
[1737121024716,0.50081305,102640.0,102630.0,0.46764874]
[1737121024917,0.50081305,102640.0,102630.0,0.46764873]
[1737121025229,0.50081305,102640.0,102630.0,0.50725456]
[1737121025527,0.409519,102640.0,102630.0,0.50725456]
[1737121025918,0.508716,102650.0,102630.0,0.95934861]
[1737121026116,0.457916,102650.0,102640.0,0.09129405]
[1737121026319,0.4092,102650.0,102640.0,0.048719]
[1737121026620,0.55210605,102660.0,102640.0,0.5129988]
[1737121026826,0.55210605,102660.0,102640.0,0.6123988]
[1737121027028,0.460807,102660.0,102650.0,0.048711]
[1737121027326,0.32407701,102670.0,102650.0,0.51603309]
[1737121027522,0.41537106,102670.0,102650.0,0.51603309]
[1737121027716,0.41537106,102670.0,102650.0,0.46732409]
[1737121027918,0.22517501,102670.0,102660.0,0.14000005]
[1737121028118,0.22517501,102670.0,102660.0,0.06393446]
[1737121028119,0.09926466,102670.0,102660.0,0.06393446]
[1737121028523,0.19055871,102670.0,102660.0,0.06393446]
[1737121029229,0.19055871,102670.0,102660.0,0.06088877]
[1737121030126,0.19055871,102670.0,102660.0,0.23507555]
[1737121030517,0.55135871,102670.0,102660.0,0.23507555]
[1737121030724,0.55135871,102670.0,102660.0,0.22289278]
[1737121031421,0.55135871,102670.0,102660.0,0.22593865]
[1737121032022,0.55135871,102670.0,102660.0,0.17723265]
[1737121032221,0.64265276,102670.0,102660.0,0.17418678]
[1737121032626,0.55135871,102670.0,102660.0,0.17418678]
[1737121033126,0.64265276,102670.0,102660.0,0.17418678]
[1737121033521,0.048708,102660.0,102650.0,0.17418678]
[1737121033724,0.6900961,102660.0,102650.0,0.17418678]
[1737121034625,0.6900961,102660.0,102640.0,0.17418678]
[1737121034818,0.50080705,102650.0,102640.0,0.17418678]
[1737121035327,0.50080705,102650.0,102640.0,0.18941879]
[1737121035630,0.50080705,102650.0,102640.0,0.22290478]
[1737121036018,0.50080705,102650.0,102640.0,0.048718]
[1737121036217,0.048718,102640.0,102630.0,0.82725652]
[1737121036424,0.048718,102640.0,102630.0,0.84248833]
[1737121037231,0.048718,102640.0,102630.0,0.66830155]
[1737121037818,0.048718,102640.0,102630.0,0.7595956]
[1737121038225,0.14000705,102650.0,102630.0,1.3995956]
[1737121038420,0.048713,102650.0,102640.0,0.048716]
[1737121038623,0.048713,102650.0,102640.0,0.06394781]
[1737121039026,0.048713,102650.0,102640.0,0.11054781]
[1737121039622,0.048713,102650.0,102640.0,0.28542798]
[1737121041431,0.40951,102660.0,102640.0,0.32800603]
[1737121041735,0.14000405,102660.0,102650.0,0.0508]
[1737121041923,0.14000405,102660.0,102650.0,0.06603]
[1737121042230,0.14000405,102660.0,102650.0,0.0508]
[1737121042432,0.04871,102660.0,102650.0,0.14514004]
[1737121042630,0.58597501,102670.0,102660.0,0.048707]
[1737121042631,0.22477701,102670.0,102660.0,0.048707]
[1737121042824,0.22477701,102670.0,102660.0,0.1923468]
[1737121043023,0.17607501,102670.0,102660.0,0.56532977]
[1737121044330,0.3146094,102680.0,102660.0,0.74020994]
[1737121044534,0.6754094,102680.0,102660.0,0.74020994]
[1737121045237,0.409502,102680.0,102660.0,0.9837391]
[1737121045634,0.048702,102680.0,102660.0,0.9837391]
[1737121045833,0.048702,102680.0,102670.0,0.048706]
[1737121046033,0.048702,102680.0,102670.0,0.06393472]
[1737121046233,0.048702,102680.0,102670.0,0.01522872]
[1737121046737,0.048702,102680.0,102670.0,0.19010889]
[1737121047744,0.58271335,102700.0,102680.0,0.048695]
[1737121047938,0.63140435,102700.0,102690.0,0.09129405]
[1737121048231,0.27060435,102700.0,102690.0,0.09129405]
[1737121048439,0.27060435,102700.0,102690.0,0.01217935]
[1737121048631,0.27060435,102700.0,102690.0,0.09129405]
[1737121049033,0.27060435,102700.0,102690.0,0.048694]
[1737121049337,0.095991,102700.0,102690.0,0.048694]
[1737121050238,0.18728505,102700.0,102690.0,0.048694]
[1737121050742,0.18728505,102700.0,102680.0,0.74563058]
[1737121050942,0.18728505,102700.0,102680.0,0.76085489]
[1737121051132,0.048694,102690.0,102680.0,0.29601003]
[1737121051532,0.048694,102690.0,102680.0,0.28383058]
[1737121052240,0.50078805,102690.0,102680.0,0.17488017]
[1737121052442,0.456792,102700.0,102680.0,0.13999305]
[1737121052634,0.048694,102690.0,102680.0,0.13999305]
[1737121052835,0.456793,102700.0,102680.0,0.13999305]
[1737121053139,0.456793,102700.0,102680.0,0.50079305]
[1737121053441,0.456793,102700.0,102680.0,0.55149305]
[1737121053742,0.048692,102690.0,102680.0,0.55149305]
[1737121054741,0.456793,102700.0,102680.0,0.60018905]
[1737121054937,0.095993,102700.0,102690.0,0.13998805]
[1737121055134,0.0473,102700.0,102690.0,0.13998805]
[1737121055339,0.095989,102700.0,102690.0,0.13998805]
[1737121055837,0.095989,102700.0,102690.0,0.50078805]
[1737121056043,0.095989,102700.0,102690.0,0.409494]
[1737121056737,0.095989,102700.0,102690.0,0.13998805]
[1737121057936,0.095989,102700.0,102690.0,0.048694]
[1737121058645,0.095989,102700.0,102690.0,0.05987514]
[1737121058841,0.095989,102700.0,102690.0,0.15116919]
[1737121059542,0.095989,102700.0,102690.0,0.05987514]
[1737121061845,0.095989,102700.0,102690.0,0.15116919]
[1737121062145,0.095989,102700.0,102690.0,0.05987514]
[1737121062540,0.095989,102700.0,102690.0,0.01118114]
[1737121062740,0.095989,102700.0,102680.0,0.65269005]
[1737121062941,0.095989,102700.0,102680.0,0.66791417]
[1737121063140,0.048693,102690.0,102680.0,0.66791417]
[1737121063351,0.048693,102690.0,102680.0,0.3608]
[1737121063542,0.099893,102690.0,102680.0,0.3608]
[1737121063845,0.099893,102690.0,102680.0,0.50079205]
[1737121064739,0.048693,102690.0,102680.0,0.55079205]
[1737121065253,0.048693,102690.0,102680.0,0.56199499]
[1737121066445,0.0985,102700.0,102690.0,0.048694]
[1737121066751,0.0985,102700.0,102690.0,0.5129664]
[1737121067044,0.0503,102710.0,102700.0,0.048689]
[1737121067348,0.76274195,102720.0,102710.0,0.048684]
[1737121067652,0.76274195,102720.0,102710.0,0.50077805]
[1737121067653,0.40194195,102720.0,102710.0,0.50077805]
[1737121067948,0.40194195,102720.0,102710.0,0.42470453]
[1737121068344,0.40194195,102720.0,102710.0,0.50077805]
[1737121068850,0.40194195,102720.0,102710.0,0.409484]
[1737121069046,0.40194195,102720.0,102710.0,0.34148399]
[1737121069247,0.20584186,102720.0,102710.0,0.48146204]
[1737121070047,0.65793591,102720.0,102690.0,0.17445691]
[1737121070273,0.5920771,102700.0,102680.0,0.52337074]
[1737121070452,0.5920821,102690.0,102680.0,0.52337074]
[1737121070660,0.50078805,102690.0,102680.0,0.52337074]
[1737121070853,0.409494,102690.0,102680.0,0.52337074]
[1737121071053,0.048694,102690.0,102680.0,0.57127074]
[1737121071356,0.50078805,102690.0,102680.0,0.57127074]
[1737121071740,0.50078805,102690.0,102680.0,0.0479]
[1737121071951,0.5920821,102690.0,102680.0,0.0479]
[1737121073149,0.5920821,102690.0,102670.0,0.0501]
[1737121073355,0.50079205,102680.0,102670.0,0.0501]
[1737121076053,0.86159205,102680.0,102670.0,0.0501]
[1737121076455,1.03521823,102680.0,102670.0,0.0501]
[1737121078560,0.048703,102670.0,102660.0,0.05890334]
[1737121078762,0.50079705,102670.0,102660.0,0.05890334]
[1737121082155,0.5920911,102670.0,102660.0,0.0479]
[1737121082661,0.6415911,102670.0,102660.0,0.0479]
[1737121082850,0.55029705,102670.0,102660.0,0.0479]
[1737121083253,0.6415911,102670.0,102650.0,0.28210922]
[1737121083456,0.5920961,102660.0,102650.0,0.28210922]
[1737121083662,0.5920961,102660.0,102650.0,0.23260922]
[1737121083849,0.6398961,102660.0,102650.0,0.23260922]
[1737121084053,0.6398961,102660.0,102640.0,0.0964]
[1737121084054,0.048713,102650.0,102640.0,0.0964]
[1737121084249,0.50080705,102650.0,102640.0,0.0964]
[1737121084458,0.50080705,102650.0,102640.0,0.11163157]
[1737121085557,0.50080705,102650.0,102640.0,0.06193157]
[1737121086862,0.50080705,102650.0,102640.0,0.0467]
[1737121091863,0.048721,102640.0,102630.0,0.05055734]
[1737121092067,0.5921091,102640.0,102630.0,0.00025734]
[1737121092263,0.6663091,102640.0,102630.0,0.00025734]
[1737121093561,0.57501505,102640.0,102630.0,0.00025734]
[1737121094859,0.54981505,102640.0,102630.0,0.00025734]
[1737121097264,0.6411091,102640.0,102630.0,0.00025734]
[1737121097766,0.048723,102630.0,102610.0,0.10694794]
[1737121097960,0.81289405,102620.0,102610.0,0.10694794]
[1737121098157,0.86162105,102620.0,102610.0,0.10694794]
[1737121098367,0.048732,102610.0,102600.0,0.1]
[1737121098671,0.50082605,102610.0,102600.0,0.1]
[1737121099068,0.5921201,102610.0,102590.0,0.34089529]
[1737121099278,0.5921241,102600.0,102590.0,0.33040922]
[1737121099664,0.5921241,102600.0,102590.0,0.0978]
[1737121099864,0.6406241,102600.0,102590.0,0.0978]
[1737121100563,0.54933005,102600.0,102590.0,0.0978]
[1737121100968,0.409536,102600.0,102590.0,0.23783505]
[1737121101174,0.3608,102600.0,102590.0,0.23783505]
[1737121101365,0.409533,102610.0,102600.0,0.048736]
[1737121101565,0.409533,102610.0,102600.0,0.14003005]
[1737121101875,0.409533,102610.0,102600.0,0.17964859]
[1737121102677,0.048733,102610.0,102600.0,0.17964859]
[1737121103065,0.048733,102610.0,102600.0,0.32064264]
[1737121103265,0.048733,102610.0,102600.0,0.22934859]
[1737121103762,0.048733,102610.0,102600.0,0.32064264]
[1737121104171,0.048733,102610.0,102600.0,0.22934859]
[1737121104567,0.048733,102610.0,102600.0,0.24153792]
[1737121104970,0.048733,102610.0,102600.0,0.18061259]
[1737121105274,0.50082705,102610.0,102600.0,0.08931854]
[1737121105666,0.50082705,102610.0,102600.0,0.03961854]
[1737121106676,0.048736,102600.0,102590.0,0.23709405]
[1737121106872,0.409536,102600.0,102590.0,0.1458]
[1737121107380,0.409536,102600.0,102590.0,0.18542182]
[1737121107874,0.409536,102600.0,102590.0,0.20055647]
[1737121108077,0.50083005,102600.0,102590.0,0.20055647]
[1737121108469,0.50083005,102600.0,102590.0,0.10405647]
[1737121109183,0.50083005,102600.0,102590.0,0.0493]
[1737121110082,0.409536,102600.0,102590.0,0.0493]
[1737121110276,0.409536,102600.0,102590.0,0.14059405]
[1737121110478,0.409536,102600.0,102590.0,0.18933505]
[1737121110676,0.048736,102600.0,102590.0,0.18933505]
[1737121110987,0.409533,102610.0,102590.0,0.24114298]
[1737121111282,0.409533,102610.0,102600.0,0.23253005]
[1737121111283,0.048733,102610.0,102600.0,0.23253005]
[1737121111782,0.048733,102610.0,102600.0,0.3238241]
[1737121112079,0.409529,102620.0,102600.0,0.33601345]
[1737121112269,0.409529,102620.0,102610.0,0.09129405]
[1737121113075,0.048729,102620.0,102610.0,0.1522142]
[1737121113683,0.048729,102620.0,102610.0,0.16744931]
[1737121113986,0.048729,102620.0,102610.0,0.16744832]
[1737121115481,0.3608,102630.0,102610.0,0.16744832]
[1737121115685,0.409524,102630.0,102620.0,0.13959405]
[1737121115986,0.409524,102630.0,102620.0,0.15178176]
[1737121116482,0.409524,102630.0,102620.0,0.16701687]
[1737121116671,0.409524,102630.0,102620.0,0.07572282]
[1737121116876,0.50081805,102630.0,102620.0,0.01523511]
[1737121117576,0.048731,102610.0,102600.0,0.37170922]
[1737121117775,0.048731,102610.0,102600.0,0.38389926]
[1737121117776,0.409531,102610.0,102600.0,0.38389926]
[1737121117983,0.409531,102610.0,102600.0,0.47519331]
[1737121118273,0.409531,102610.0,102600.0,0.51481295]
[1737121118470,0.86162505,102610.0,102600.0,0.41132839]
[1737121118671,0.770331,102610.0,102600.0,0.38389976]
[1737121118877,0.770331,102610.0,102600.0,0.24258458]
[1737121119485,0.770331,102610.0,102600.0,0.23039405]
[1737121120090,0.770331,102610.0,102600.0,0.24563216]
[1737121120386,0.770331,102610.0,102600.0,0.28525128]
[1737121120587,0.770331,102610.0,102600.0,0.27306079]
[1737121120787,0.770331,102610.0,102600.0,0.23344167]
[1737121120993,0.770331,102610.0,102600.0,0.24563221]
[1737121122082,0.770331,102610.0,102600.0,0.28525036]
[1737121122488,0.770331,102610.0,102600.0,0.26086996]
[1737121123588,0.770331,102610.0,102600.0,0.26086968]
[1737121124485,0.048731,102610.0,102600.0,0.26086968]
[1737121124696,0.409531,102610.0,102600.0,0.26086968]
[1737121126092,0.409531,102610.0,102600.0,0.26086952]
[1737121126588,0.048731,102610.0,102600.0,0.26086952]
[1737121126791,0.409531,102610.0,102600.0,0.26086952]
[1737121128093,0.048731,102610.0,102600.0,0.26086952]
[1737121128291,0.409531,102610.0,102600.0,0.26086952]
[1737121129483,0.409531,102610.0,102600.0,0.26086926]
[1737121130988,0.409528,102620.0,102600.0,0.76169931]
[1737121131196,0.048728,102620.0,102610.0,0.14002505]
[1737121131388,0.3608,102630.0,102610.0,0.15526209]
[1737121131585,0.409524,102630.0,102620.0,0.18462105]
[1737121131783,0.409524,102630.0,102620.0,0.19985809]
[1737121131991,0.409524,102630.0,102620.0,0.21509584]
[1737121132594,0.409524,102630.0,102620.0,0.07507479]
[1737121132994,0.50081805,102630.0,102620.0,0.01828482]
[1737121133295,0.50081805,102630.0,102620.0,0.01523775]
[1737121133497,0.048727,102620.0,102610.0,0.14002505]
[1737121133790,0.409527,102620.0,102610.0,0.14002505]
[1737121133994,0.048727,102620.0,102610.0,0.17049635]
[1737121134185,0.409527,102620.0,102610.0,0.12176535]
[1737121135095,0.409527,102620.0,102610.0,0.64702282]
[1737121135394,0.409527,102620.0,102610.0,0.6439765]
[1737121135581,0.409527,102620.0,102610.0,0.64702381]
[1737121135786,0.50082105,102620.0,102610.0,0.55572976]
[1737121136090,0.50082105,102620.0,102610.0,0.01523565]
[1737121136282,0.50082105,102620.0,102600.0,0.46514181]
[1737121136596,0.409531,102610.0,102600.0,0.49561722]
[1737121136895,0.409531,102610.0,102600.0,0.50610527]
[1737121137295,0.409531,102610.0,102600.0,0.26961003]
[1737121137596,0.50082505,102610.0,102600.0,0.01523771]
[1737121138191,0.048736,102600.0,102590.0,0.27974776]
[1737121138494,0.50083005,102600.0,102590.0,0.29193904]
[1737121138793,0.54693005,102600.0,102590.0,0.08592216]
[1737121139182,0.59083005,102600.0,102590.0,0.03962216]
[1737121139493,0.048741,102590.0,102580.0,0.46344181]
[1737121139690,0.409541,102590.0,102580.0,0.47563423]
[1737121140089,0.409541,102590.0,102580.0,0.51525972]
[1737121140290,0.409541,102590.0,102580.0,0.28486001]
[1737121141391,0.409541,102590.0,102580.0,0.28486002]
[1737121142500,0.409541,102590.0,102580.0,0.28485984]
[1737121143095,0.409541,102590.0,102580.0,0.33360584]
[1737121143296,0.409537,102600.0,102590.0,0.048741]
[1737121143602,0.409537,102600.0,102590.0,0.15527535]
[1737121143903,0.409537,102600.0,102590.0,0.10653435]
[1737121144204,0.58355597,102610.0,102590.0,0.17051592]
[1737121144396,0.58355597,102610.0,102600.0,0.13889405]
[1737121144595,0.58355597,102610.0,102600.0,0.23323572]
[1737121144795,0.409534,102610.0,102600.0,0.29416211]
[1737121145307,0.048734,102610.0,102600.0,0.30939929]
[1737121145603,0.409534,102610.0,102600.0,0.16936924]
[1737121146188,0.409534,102610.0,102600.0,0.402817]
[1737121147495,0.409534,102610.0,102600.0,0.16936924]
[1737121147895,0.409534,102610.0,102600.0,0.07807519]
[1737121148204,0.50082805,102610.0,102600.0,0.01523718]
[1737121148402,0.59302805,102610.0,102600.0,0.01523718]
[1737121148804,0.59302805,102610.0,102590.0,0.61655152]
[1737121149104,0.409536,102600.0,102590.0,0.33998083]
[1737121149605,0.409536,102600.0,102590.0,0.37960234]
[1737121149801,0.409536,102600.0,102590.0,0.37655454]
[1737121149997,0.409536,102600.0,102590.0,0.19489558]
[1737121149998,0.048736,102600.0,102590.0,0.19489558]
[1737121150707,0.048736,102600.0,102590.0,0.17051311]
[1737121152606,0.409536,102610.0,102590.0,0.17051311]
[1737121152909,0.409536,102610.0,102600.0,0.13649405]
[1737121153207,0.409536,102610.0,102600.0,0.16697211]
[1737121153408,0.409536,102610.0,102600.0,0.07567806]
[1737121153908,0.409536,102610.0,102600.0,0.16697211]
[1737121156109,0.409536,102610.0,102600.0,0.16697076]
[1737121156503,0.409536,102610.0,102600.0,0.16392323]
[1737121156813,0.409536,102610.0,102600.0,0.16697076]
[1737121157118,0.50083005,102610.0,102600.0,0.02742918]
[1737121157305,0.50083005,102610.0,102600.0,0.01523904]
[1737121157613,0.048737,102600.0,102590.0,0.23344776]
[1737121157805,0.409537,102600.0,102590.0,0.24868678]
[1737121158306,0.409537,102600.0,102590.0,0.2883088]
[1737121158510,0.409537,102600.0,102590.0,0.05181319]
[1737121158704,0.409537,102600.0,102590.0,0.14615552]
[1737121159203,0.409537,102600.0,102590.0,0.14310758]
[1737121159404,0.409537,102600.0,102590.0,0.14615545]
[1737121159611,0.409537,102600.0,102590.0,0.14310758]
[1737121159805,0.409537,102600.0,102590.0,0.11872496]
[1737121160006,0.409537,102600.0,102590.0,0.12177282]
[1737121160912,0.409537,102600.0,102590.0,0.16577282]
[1737121161113,0.048737,102600.0,102590.0,0.16272496]
[1737121161321,0.048737,102600.0,102590.0,0.16577279]
[1737121161322,0.409537,102600.0,102590.0,0.16577279]
[1737121161909,0.409537,102600.0,102590.0,0.21451679]
[1737121162214,0.409537,102600.0,102590.0,0.16577279]
[1737121162718,0.409537,102600.0,102590.0,0.03047874]
[1737121163918,0.409537,102600.0,102590.0,0.1217726]
[1737121164113,0.409537,102600.0,102590.0,0.12177237]
[1737121164309,0.409537,102600.0,102590.0,0.10958107]
[1737121164614,0.409537,102600.0,102590.0,0.12177235]
[1737121164814,0.409537,102600.0,102590.0,0.0304783]
[1737121165215,0.59243105,102600.0,102590.0,0.01523914]
[1737121165514,0.048742,102590.0,102580.0,0.32384776]
[1737121165707,0.50083605,102590.0,102580.0,0.33603962]
[1737121165904,0.50083605,102590.0,102580.0,0.35127945]
[1737121166108,0.409542,102590.0,102580.0,0.35127945]
[1737121166607,0.409542,102590.0,102580.0,0.10563983]
[1737121166807,0.409542,102590.0,102580.0,0.13002533]
[1737121167011,0.50083605,102590.0,102580.0,0.13002533]
[1737121167214,0.50083605,102590.0,102580.0,0.03962533]
[1737121167416,0.048745,102580.0,102560.0,0.36066684]
[1737121167615,1.0442381,102570.0,102560.0,0.36066684]
[1737121167804,0.95294405,102570.0,102560.0,0.35017165]
[1737121168009,0.86165,102570.0,102550.0,0.35017165]
[1737121168211,0.409556,102560.0,102550.0,0.35017165]
[1737121168413,0.409556,102560.0,102550.0,0.36236758]
[1737121168716,0.409556,102560.0,102550.0,0.36236755]
[1737121169215,0.409556,102560.0,102550.0,0.4536616]
[1737121169519,0.3608,102560.0,102550.0,0.0121959]
[1737121169815,0.3608,102560.0,102550.0,0.09129405]
[1737121170014,0.3608,102560.0,102550.0,0.01219584]
[1737121170015,0.409556,102560.0,102550.0,0.01219584]
[1737121170224,0.409556,102560.0,102550.0,0.09129405]
[1737121170514,0.409556,102560.0,102540.0,0.10150394]
[1737121170711,0.409556,102560.0,102540.0,0.01219608]
[1737121170911,0.409556,102560.0,102550.0,0.09129405]
[1737121171110,0.3608,102560.0,102550.0,0.09129405]
[1737121171709,0.63117297,102570.0,102550.0,0.1034899]
[1737121171919,0.63117297,102570.0,102560.0,0.0474]
[1737121172119,0.99197297,102570.0,102560.0,0.0474]
[1737121172513,1.03451602,102570.0,102530.0,0.4645505]
[1737121172709,0.409563,102550.0,102530.0,0.20724024]
[1737121172910,0.3608,102540.0,102530.0,0.20724024]
[1737121173108,0.3608,102540.0,102530.0,0.11594619]
[1737121173109,0.409565,102540.0,102530.0,0.11594619]
[1737121173416,0.409565,102540.0,102530.0,0.10569569]
[1737121173617,0.409565,102540.0,102530.0,0.10569791]
[1737121173817,0.409565,102540.0,102530.0,0.0935]
[1737121174218,0.048775,102520.0,102510.0,0.35017165]
[1737121174423,0.770375,102520.0,102510.0,0.35017165]
[1737121174722,0.86166905,102520.0,102510.0,0.35017165]
[1737121174919,0.90536905,102520.0,102510.0,0.35017165]
[1737121175519,0.04878,102510.0,102500.0,0.11]
[1737121175824,0.04878,102510.0,102500.0,0.09129405]
[1737121176218,0.04878,102510.0,102490.0,0.0924]
[1737121176219,0.40958,102510.0,102490.0,0.0924]
[1737121176414,0.04878,102510.0,102490.0,0.23248105]
[1737121176715,0.04878,102510.0,102500.0,0.13489405]
[1737121177125,0.5572862,102520.0,102500.0,0.13489405]
[1737121177326,0.6060612,102520.0,102500.0,0.13489405]
[1737121177617,0.69735525,102520.0,102500.0,0.13489405]
[1737121177824,0.69735525,102520.0,102500.0,0.15929636]
[1737121179521,0.6060612,102520.0,102500.0,0.15929636]
[1737121179722,0.6060612,102520.0,102500.0,0.17454777]
[1737121180225,0.3608,102510.0,102500.0,0.17454777]
[1737121181320,0.3608,102510.0,102500.0,0.08325372]
[1737121181621,0.409578,102510.0,102500.0,0.08325372]
[1737121182028,0.048778,102510.0,102500.0,0.17454777]
[1737121182233,0.1964862,102520.0,102500.0,0.67541982]
[1737121182423,0.1964862,102520.0,102510.0,0.5921661]
[1737121182920,0.2452592,102520.0,102500.0,0.55972646]
[1737121183119,0.2452592,102520.0,102510.0,0.09129405]
[1737121183627,0.2452592,102520.0,102510.0,0.10654546]
[1737121183928,0.6060592,102520.0,102510.0,0.10654546]
[1737121184124,0.2452592,102520.0,102510.0,0.10654546]
[1737121184626,0.2452592,102520.0,102470.0,0.3608]
[1737121184627,0.048782,102500.0,102470.0,0.3608]
[1737121184831,0.048792,102480.0,102470.0,0.13459405]
[1737121185023,0.048792,102480.0,102470.0,0.0433]
[1737121185328,0.409592,102480.0,102470.0,0.13459405]
[1737121185525,0.409592,102480.0,102470.0,0.15900119]
[1737121185919,0.409592,102480.0,102470.0,0.0433]
[1737121187825,0.409592,102480.0,102470.0,0.06771143]
[1737121190533,0.409592,102480.0,102470.0,0.0433]
[1737121190722,0.409592,102480.0,102470.0,0.04359412]
[1737121192024,0.409592,102480.0,102470.0,0.06800471]
[1737121192025,0.048792,102480.0,102470.0,0.06800471]
[1737121192226,0.49800823,102490.0,102470.0,0.61480494]